fUST/lending_fUST_20250122
["ID","MTS","AMOUNT","RATE_DAILY","PERIOD"]
[349940751,1737525033639,-558.03675578,0.00021916,2]
[349940752,1737525033649,-500.0,0.00021916,2]
[349940753,1737525033658,-500.0,0.00021916,2]
[349940754,1737525033668,-500.0,0.00021916,2]
[349940755,1737525033678,-500.0,0.00021916,2]
[349940756,1737525033687,-500.0,0.00021916,2]
[349940757,1737525033697,-500.0,0.00021916,2]
[349940758,1737525033707,-500.0,0.00021916,2]
[349940759,1737525033717,-500.0,0.00021916,2]
[349940760,1737525033727,-500.0,0.00021916,2]
[349940761,1737525033737,-500.0,0.00021916,2]
[349940762,1737525033748,-500.0,0.00021916,2]
[349940763,1737525033757,-500.0,0.00021916,2]
[349940764,1737525033767,-500.0,0.00021916,2]
[349940765,1737525033778,-500.0,0.00021916,2]
[349940766,1737525033788,-500.0,0.00021916,2]
[349940767,1737525033799,-500.0,0.00021916,2]
[349940768,1737525033809,-500.0,0.00021916,2]
[349940769,1737525033819,-500.0,0.00021916,2]
[349940770,1737525033830,-500.0,0.00021916,2]
[349940771,1737525033840,-500.0,0.00021916,2]
[349940772,1737525033850,-500.0,0.00021916,2]
[349940773,1737525033861,-500.0,0.00021916,2]
[349940774,1737525033870,-500.0,0.00021916,2]
[349940775,1737525033881,-500.0,0.00021916,2]
[349940776,1737525033891,-500.0,0.00021916,2]
[349940777,1737525033901,-500.0,0.00021916,2]
[349940778,1737525033912,-500.0,0.00021916,2]
[349940779,1737525033922,-500.0,0.00021916,2]
[349940780,1737525033932,-500.0,0.00021916,2]
[349940781,1737525033944,-593.20021838,0.00021916,2]
[349940782,1737525033959,-500.0,0.00021916,2]
[349940783,1737525033975,-500.0,0.00021916,2]
[349940784,1737525033989,-505.24640775,0.00021916,2]
[349940785,1737525033999,-500.0,0.00021916,2]
[349940786,1737525034009,-500.0,0.00021916,2]
[349940787,1737525034019,-500.0,0.00021916,2]
[349940788,1737525034029,-500.0,0.00021916,2]
[349940789,1737525034039,-3546.15232169,0.00021917,5]
[349940790,1737525034049,-500.0,0.00021917,3]
[349940791,1737525034059,-571.12687157,0.00021917,3]
[349940792,1737525034068,-476.7482545,0.00021917,3]
[349940793,1737525034077,-289.47010108,0.00021917,3]
[349940794,1737525034087,-500.0,0.00021917,3]
[349940795,1737525034097,-500.0,0.00021917,3]
[349940796,1737525034107,-500.0,0.00021917,3]
[349940797,1737525034116,-521.98,0.00021917,3]
[349940798,1737525034126,-500.0,0.00021917,3]
[349940799,1737525034136,-500.0,0.00021917,3]
[349940800,1737525034146,-510.44842405,0.00021917,3]
[349940801,1737525034158,-505.342124,0.00021917,3]
[349940802,1737525034170,-500.0,0.00021917,3]
[349940803,1737525034180,-500.0,0.00021917,3]
[349940804,1737525034190,-500.0,0.00021917,3]
[349940805,1737525034200,-500.0,0.00021917,3]
[349940806,1737525034210,-612.83,0.00021917,3]
[349940807,1737525034220,-243.3348608,0.00021917,3]
[349940808,1737525034229,-500.0,0.00021917,3]
[349940809,1737525034240,-500.0,0.00021917,3]
[349940810,1737525034250,-505.81189838,0.00021917,3]
[349940811,1737525034260,-500.0,0.00021917,3]
[349940812,1737525034270,-515.56,0.00021917,3]
[349940813,1737525034280,-503.48,0.00021917,3]
[349940814,1737525034290,-500.0,0.00021917,3]
[349940815,1737525034300,-500.0,0.00021917,3]
[349940816,1737525034310,-500.0,0.00021917,3]
[349940817,1737525034319,-683.97,0.00021917,3]
[349940818,1737525034329,-500.0,0.00021917,3]
[349940819,1737525034339,-500.0,0.00021917,3]
[349940820,1737525034349,-500.0,0.00021917,3]
[349940821,1737525034362,-500.0,0.00021917,3]
[349940822,1737525034372,-500.0,0.00021917,3]
[349940823,1737525034383,-392.71315189,0.00021917,3]
[349940824,1737525034393,-500.0,0.00021917,3]
[349940825,1737525034403,-500.0,0.00021917,3]
[349940826,1737525034414,-500.0,0.00021917,3]
[349940827,1737525034424,-784.22,0.00021917,3]
[349940828,1737525034435,-500.0,0.00021917,3]
[349940829,1737525034446,-500.0,0.00021917,3]
[349940830,1737525034560,-373.03680699,0.00021917,3]
[349940831,1737525034571,-500.0,0.00021917,3]
[349940832,1737525034581,-500.0,0.00021917,3]
[349940833,1737525034591,-500.0,0.00021917,3]
[349940834,1737525034601,-500.0,0.00021917,3]
[349940835,1737525034611,-729.22,0.00021917,3]
[349940836,1737525034620,-500.0,0.00021917,3]
[349940837,1737525034630,-509.26485176,0.00021917,3]
[349940838,1737525034640,-500.0,0.00021917,3]
[349940839,1737525034650,-500.0,0.00021917,3]
[349940840,1737525034660,-983.69,0.00021917,3]
[349940841,1737525034670,-500.0,0.00021917,3]
[349940842,1737525034680,-500.0,0.00021917,3]
[349940843,1737525034690,-510.83698432,0.00021917,3]
[349940844,1737525034699,-500.0,0.00021917,3]
[349940845,1737525034709,-500.0,0.00021917,3]
[349940846,1737525034720,-410.15053904,0.00021917,3]
[349940847,1737525034730,-1029.38,0.00021917,3]
[349940848,1737525034740,-1004.1,0.00021917,3]
[349940849,1737525034750,-562.97,0.00021917,3]
[349940850,1737525034759,-500.0,0.00021917,3]
[349940851,1737525034771,-500.0,0.00021917,2]
[349940852,1737525034783,-500.0,0.00021917,3]
[349940853,1737525034793,-500.0,0.00021917,3]
[349940854,1737525034803,-643.44,0.00021917,3]
[349940855,1737525034813,-500.0,0.00021917,3]
[349940856,1737525034823,-693.15,0.00021917,3]
[349940857,1737525034832,-500.0,0.00021917,3]
[349940858,1737525034842,-500.0,0.00021917,3]
[349940859,1737525034851,-500.0,0.00021917,3]
[349940860,1737525034861,-617.91,0.00021917,3]
[349940861,1737525034877,-515.81,0.00021917,3]
[349940862,1737525034886,-572.61,0.00021917,3]
[349940863,1737525034896,-500.0,0.00021917,3]
[349940864,1737525034906,-500.0,0.00021917,3]
[349940865,1737525034915,-500.0,0.00021917,3]
[349940866,1737525034925,-500.0,0.00021917,3]
[349940867,1737525034935,-500.0,0.00021917,3]
[349940868,1737525034944,-500.0,0.00021917,3]
[349940869,1737525034954,-500.0,0.00021917,3]
[349940870,1737525034963,-500.0,0.00021917,3]
[349940871,1737525034973,-500.0,0.00021917,3]
[349940872,1737525034983,-1057.4,0.00021917,3]
[349940873,1737525034994,-500.0,0.00021917,3]
[349940874,1737525035004,-1028.49,0.00021917,3]
[349940875,1737525035013,-487.61176601,0.00021917,3]
[349940876,1737525035023,-500.0,0.00021917,3]
[349940877,1737525035033,-936.69,0.00021917,3]
[349940878,1737525035043,-500.0,0.00021917,3]
[349940879,1737525035054,-500.0,0.00021917,3]
[349940880,1737525035064,-500.0,0.00021917,3]
[349940881,1737525035073,-667.43,0.00021917,3]
[349940882,1737525035083,-583.97,0.00021917,3]
[349940883,1737525035092,-500.0,0.00021917,3]
[349940884,1737525035103,-695.07,0.00021917,3]
[349940885,1737525035112,-500.0,0.00021917,3]
[349940886,1737525035122,-830.54,0.00021917,3]
[349940887,1737525035131,-500.0,0.00021917,3]
[349940888,1737525035140,-500.0,0.00021917,3]
[349940889,1737525035150,-549.43,0.00021917,3]
[349940890,1737525035159,-986.66,0.00021917,3]
[349940891,1737525035169,-500.0,0.00021917,3]
[349940892,1737525035178,-500.0,0.00021917,3]
[349940893,1737525035188,-500.0,0.00021917,3]
[349940894,1737525035197,-500.0,0.00021917,3]
[349940895,1737525035207,-36091.14,0.00021917,3]
[349940896,1737525035217,-1852.7,0.00021917,3]
[349940897,1737525035226,-500.0,0.00021917,3]
[349940898,1737525035236,-218.53261366,0.00021917,3]
[349940899,1737525035247,-500.0,0.00021917,3]
[349940900,1737525035256,-9150.79,0.00021917,3]
[349940901,1737525035266,-1433.66,0.00021917,3]
[349940902,1737525035276,-500.0,0.00021917,2]
[349940903,1737525035285,-1565.17,0.00021917,2]
[349940904,1737525035295,-500.0,0.00021917,3]
[349940905,1737525035304,-2940.41,0.00021917,3]
[349940906,1737525035314,-2373.03,0.00021917,3]
[349940907,1737525035323,-2532.61,0.00021917,3]
[349940908,1737525035333,-500.0,0.00021917,3]
[349940909,1737525035343,-1452.61,0.00021917,3]
[349940910,1737525035355,-500.0,0.00021917,3]
[349940911,1737525035364,-500.0,0.00021917,3]
[349940912,1737525035374,-533.28863032,0.00021917,3]
[349940913,1737525035383,-500.0,0.00021917,3]
[349940914,1737525035393,-839.0,0.00021917,3]
[349940915,1737525035403,-500.0,0.00021917,3]
[349940916,1737525035412,-816.86,0.00021917,3]
[349940917,1737525035422,-500.0,0.00021917,3]
[349940918,1737525035431,-500.0,0.00021917,3]
[349940919,1737525035440,-500.0,0.00021917,3]
[349940920,1737525035450,-500.0,0.00021917,3]
[349940921,1737525035460,-500.0,0.00021917,3]
[349940922,1737525035470,-1460.24,0.00021917,3]
[349940923,1737525035479,-500.0,0.00021917,3]
[349940924,1737525035490,-500.0,0.00021917,3]
[349940925,1737525035501,-500.0,0.00021917,3]
[349940926,1737525035511,-500.0,0.00021917,3]
[349940927,1737525035521,-740.55,0.00021917,3]
[349940928,1737525035534,-500.0,0.00021917,3]
[349940929,1737525035544,-500.0,0.00021917,3]
[349940930,1737525035554,-500.0,0.00021917,3]
[349940931,1737525035563,-623.32593585,0.00021917,3]
[349940932,1737525035573,-500.0,0.00021917,3]
[349940933,1737525035583,-500.0,0.00021917,3]
[349940934,1737525035593,-500.0,0.00021917,3]
[349940935,1737525035602,-233.62528951,0.00021917,3]
[349940936,1737525035612,-500.0,0.00021917,3]
[349940937,1737525035622,-524.98,0.00021917,3]
[349940938,1737525035631,-788.31,0.00021917,3]
[349940939,1737525035641,-455.31568365,0.00021917,3]
[349940940,1737525035650,-1883.49,0.00021917,3]
[349940941,1737525035659,-2529.18,0.00021917,3]
[349940942,1737525035670,-515.28825803,0.00021917,3]
[349940943,1737525035680,-500.0,0.00021917,3]
[349940944,1737525035690,-1295.67,0.00021917,3]
[349940945,1737525035702,-611.17,0.00021917,3]
[349940946,1737525035712,-500.0,0.00021917,3]
[349940947,1737525035723,-956.44,0.00021917,3]
[349940948,1737525035732,-500.0,0.00021917,3]
[349940949,1737525035742,-1463.83,0.00021917,3]
[349940950,1737525035751,-500.0,0.00021917,3]
[349940951,1737525035760,-500.0,0.00021917,3]
[349940952,1737525035769,-500.0,0.00021917,3]
[349940953,1737525035779,-713.79,0.00021917,3]
[349940954,1737525035788,-6434.63,0.00021917,3]
[349940955,1737525035797,-779.82,0.00021917,3]
[349940956,1737525035806,-500.0,0.00021917,3]
[349940957,1737525035815,-3016.11,0.00021917,3]
[349940958,1737525035824,-1055.18,0.00021917,3]
[349940959,1737525035834,-500.0,0.00021917,3]
[349940960,1737525035842,-744.72,0.00021917,3]
[349940961,1737525035850,-507.25159855,0.00021917,3]
[349940962,1737525035859,-500.0,0.00021917,3]
[349940963,1737525035868,-500.0,0.00021917,3]
[349940964,1737525035877,-500.0,0.00021917,3]
[349940965,1737525035887,-500.0,0.00021917,3]
[349940966,1737525035896,-517.91,0.00021917,3]
[349940967,1737525035906,-1275.88,0.00021917,3]
[349940968,1737525035915,-1263.52,0.00021917,3]
[349940969,1737525035926,-843.7,0.00021917,3]
[349940970,1737525035935,-500.0,0.00021917,3]
[349940971,1737525035944,-500.0,0.00021917,3]
[349940972,1737525035953,-2715.3,0.00021917,3]
[349940973,1737525035963,-8049.24,0.00021917,3]
[349940974,1737525035972,-500.0,0.00021917,3]
[349940975,1737525035982,-500.0,0.00021917,3]
[349940976,1737525035991,-500.0,0.00021917,3]
[349940977,1737525036000,-772.57,0.00021917,3]
[349940978,1737525036010,-661.69,0.00021917,3]
[349940979,1737525036019,-1999.49,0.00021917,3]
[349940980,1737525036028,-599.42,0.00021917,3]
[349940981,1737525036038,-735.92,0.00021917,3]
[349940982,1737525036047,-2058.3,0.00021917,3]
[349940983,1737525036127,-500.0,0.00021917,3]
[349940984,1737525036137,-389.64807232,0.00021917,3]
[349940985,1737525036146,-500.0,0.00021917,3]
[349940986,1737525036155,-500.0,0.00021917,3]
[349940987,1737525036164,-500.0,0.00021917,3]
[349940988,1737525036174,-2154.8,0.00021917,3]
[349940989,1737525036183,-500.0,0.00021917,3]
[349940990,1737525036193,-500.0,0.00021917,3]
[349940991,1737525036202,-329.27056315,0.0002192,2]
[349940992,1737525036212,-329.27056315,0.00021954,2]
[349940993,1737525036222,-259.635,0.00021965,2]
[349940994,1737525036231,-2064.0,0.00021965,2]
[349940995,1737525036240,-542.695,0.00021965,2]
[349940996,1737525036251,-2307.0,0.00021965,2]
[349940997,1737525036260,-150.618,0.00021965,2]
[349940998,1737525036269,-150.307,0.00021965,2]
[349940999,1737525036279,-152.0,0.00021972,2]
[349941000,1737525036288,-159.18,0.00021975,2]
[349941001,1737525036298,-151.0,0.00021975,2]
[349941002,1737525036308,-151.0,0.00021975,2]
[349941003,1737525036318,-151.0,0.00021975,2]
[349941004,1737525036327,-151.0,0.00021975,2]
[349941005,1737525036337,-151.0,0.00021975,2]
[349941006,1737525036346,-151.0,0.00021975,2]
[349941007,1737525036355,-151.0,0.00021975,2]
[349941008,1737525036365,-151.0,0.00021975,2]
[349941009,1737525036374,-151.0,0.00021975,2]
[349941010,1737525036383,-151.0,0.00021975,2]
[349941011,1737525036393,-151.0,0.00021975,2]
[349941012,1737525036402,-151.0,0.00021975,2]
[349941013,1737525036413,-151.0,0.00021975,2]
[349941014,1737525036422,-151.0,0.00021975,2]
[349941015,1737525036431,-151.0,0.00021975,2]
[349941016,1737525036440,-151.0,0.00021975,2]
[349941017,1737525036449,-151.0,0.00021975,2]
[349941018,1737525036459,-151.0,0.00021975,2]
[349941019,1737525036468,-151.0,0.00021975,2]
[349941020,1737525036478,-151.0,0.00021975,2]
[349941021,1737525036487,-290.0,0.00021975,2]
[349941022,1737525036496,-2000.0,0.00022,2]
[349941023,1737525036506,-400.3436161,0.00022,2]
[349941024,1737525036516,-154.1761492,0.00022,2]
[349941025,1737525036531,-153.0,0.00022,2]
[349941026,1737525036541,-215.2533166,0.00022,2]
[349941027,1737525036551,-154.1761492,0.00022,2]
[349941028,1737525036562,-153.0,0.00022,2]
[349941029,1737525036573,-215.2533166,0.00022,2]
[349941030,1737525036583,-153.0,0.00022,2]
[349941031,1737525036592,-183.5701316,0.00022,2]
[349941032,1737525036601,-257.2654694,0.00022,2]
[349941033,1737525036611,-253.3162043,0.00022,2]
[349941034,1737525036620,-157.660003,0.00022,2]
[349941035,1737525036630,-204.943366,0.00022,2]
[349941036,1737525036639,-153.0,0.00022,2]
[349941037,1737525036649,-154.1761492,0.00022,2]
[349941038,1737525036659,-153.0,0.00022,2]
[349941039,1737525036670,-153.0,0.00022,2]
[349941040,1737525036679,-215.2533166,0.00022,2]
[349941041,1737525036688,-153.0,0.00022,2]
[349941042,1737525036698,-153.0,0.00022,2]
[349941043,1737525036707,-153.0,0.00022,2]
[349941044,1737525036717,-215.2533166,0.00022,2]
[349941045,1737525036726,-154.1761492,0.00022,2]
[349941046,1737525036735,-154.1761492,0.00022,2]
[349941047,1737525036745,-215.2533166,0.00022,2]
[349941048,1737525036754,-153.0,0.00022,2]
[349941049,1737525036764,-153.0,0.00022,2]
[349941050,1737525036773,-153.0,0.00022,2]
[349941051,1737525036782,-741.2216256,0.0002201,2]
[349941052,1737525036791,-501.25196121,0.00022053,2]
[349941053,1737525036801,-235.26683448,0.00022053,2]
[349941054,1737525036813,-500.0,0.00022053,2]
[349941055,1737525036829,-500.0,0.00022053,2]
[349941056,1737525036845,-460.71683065,0.00022053,2]
[349941057,1737525036858,-500.0,0.00022053,2]
[349941058,1737525036874,-160.0,0.00022053,2]
[349941059,1737525036889,-500.0,0.00022054,3]
[349941060,1737525036904,-500.0,0.00022054,3]
[349941061,1737525036918,-500.0,0.00022054,3]
[349941062,1737525036935,-500.0,0.00022054,3]
[349941063,1737525036948,-521.98,0.00022054,3]
[349941064,1737525036961,-641.89149801,0.00022054,3]
[349941065,1737525036977,-500.0,0.00022054,3]
[349941066,1737525036991,-500.0,0.00022054,3]
[349941067,1737525037004,-500.0,0.00022054,3]
[349941068,1737525037019,-505.431166,0.00022054,3]
[349941069,1737525037033,-498.92291845,0.00022054,3]
[349941070,1737525037050,-612.83,0.00022054,3]
[349941071,1737525037064,-500.0,0.00022054,3]
[349941072,1737525037079,-500.0,0.00022054,3]
[349941073,1737525037094,-423.08858394,0.00022054,3]
[349941074,1737525037105,-515.56,0.00022054,3]
[349941075,1737525037116,-503.48,0.00022054,3]
[349941076,1737525037130,-500.0,0.00022054,3]
[349941077,1737525037147,-500.0,0.00022054,3]
[349941078,1737525037157,-500.0,0.00022054,3]
[349941079,1737525037171,-683.97,0.00022054,3]
[349941080,1737525037185,-500.0,0.00022054,3]
[349941081,1737525037198,-500.0,0.00022054,3]
[349941082,1737525037210,-500.0,0.00022054,3]
[349941083,1737525037223,-500.0,0.00022054,3]
[349941084,1737525037235,-500.0,0.00022054,3]
[349941085,1737525037248,-500.0,0.00022054,3]
[349941086,1737525037260,-557.89194413,0.00022054,3]
[349941087,1737525037272,-500.0,0.00022054,3]
[349941088,1737525037284,-784.22,0.00022054,3]
[349941089,1737525037296,-500.0,0.00022054,3]
[349941090,1737525037309,-500.0,0.00022054,3]
[349941091,1737525037321,-500.0,0.00022054,3]
[349941092,1737525037333,-500.0,0.00022054,3]
[349941093,1737525037347,-729.22,0.00022054,3]
[349941094,1737525037359,-500.0,0.00022054,3]
[349941095,1737525037372,-500.0,0.00022054,3]
[349941096,1737525037385,-983.69,0.00022054,3]
[349941097,1737525037398,-500.0,0.00022054,3]
[349941098,1737525037410,-500.0,0.00022054,3]
[349941099,1737525037423,-500.0,0.00022054,3]
[349941101,1737525037435,-1029.38,0.00022054,3]
[349941102,1737525037448,-1004.1,0.00022054,3]
[349941103,1737525037460,-562.97,0.00022054,3]
[349941104,1737525037472,-500.0,0.00022054,3]
[349941105,1737525037484,-514.34024946,0.00022054,3]
[349941106,1737525037496,-643.44,0.00022054,3]
[349941107,1737525037508,-500.0,0.00022054,3]
[349941108,1737525037520,-693.15,0.00022054,3]
[349941109,1737525037534,-500.0,0.00022054,3]
[349941110,1737525037546,-500.0,0.00022054,3]
[349941111,1737525037558,-500.0,0.00022054,3]
[349941112,1737525037570,-617.91,0.00022054,3]
[349941113,1737525037583,-515.81,0.00022054,3]
[349941114,1737525037595,-572.61,0.00022054,3]
[349941115,1737525037607,-500.0,0.00022054,3]
[349941116,1737525037620,-500.0,0.00022054,3]
[349941117,1737525037631,-500.0,0.00022054,3]
[349941118,1737525037643,-500.0,0.00022054,3]
[349941119,1737525037655,-313.0336524,0.00022054,3]
[349941120,1737525037667,-500.0,0.00022054,3]
[349941121,1737525037680,-500.0,0.00022054,3]
[349941122,1737525037691,-500.0,0.00022054,3]
[349941123,1737525037701,-500.0,0.00022054,3]
[349941124,1737525037710,-1057.4,0.00022054,3]
[349941125,1737525037841,-500.0,0.00022054,3]
[349941126,1737525037852,-1028.49,0.00022054,3]
[349941127,1737525037861,-500.0,0.00022054,3]
[349941128,1737525037870,-936.69,0.00022054,3]
[349941129,1737525037879,-500.0,0.00022054,3]
[349941130,1737525037889,-500.0,0.00022054,3]
[349941131,1737525037898,-500.0,0.00022054,3]
[349941132,1737525037908,-667.43,0.00022054,3]
[349941133,1737525037918,-583.97,0.00022054,3]
[349941134,1737525037927,-500.0,0.00022054,3]
[349941135,1737525037938,-695.07,0.00022054,3]
[349941136,1737525037948,-500.0,0.00022054,3]
[349941137,1737525037958,-830.54,0.00022054,3]
[349941138,1737525037969,-500.0,0.00022054,3]
[349941139,1737525037979,-500.0,0.00022054,3]
[349941140,1737525037988,-549.43,0.00022054,3]
[349941141,1737525037998,-986.66,0.00022054,3]
[349941142,1737525038007,-500.0,0.00022054,3]
[349941143,1737525038017,-500.0,0.00022054,3]
[349941144,1737525038026,-162.78791893,0.00022054,3]
[349941145,1737525038036,-500.0,0.00022054,3]
[349941146,1737525038046,-36091.14,0.00022054,3]
[349941147,1737525038056,-1852.7,0.00022054,3]
[349941148,1737525038066,-500.0,0.00022054,3]
[349941149,1737525038076,-500.0,0.00022054,3]
[349941150,1737525038086,-9150.79,0.00022054,3]
[349941151,1737525038095,-1433.66,0.00022054,3]
[349941152,1737525038105,-1565.17,0.00022054,2]
[349941153,1737525038115,-500.0,0.00022054,3]
[349941154,1737525038125,-2940.41,0.00022054,3]
[349941155,1737525038134,-2373.03,0.00022054,3]
[349941156,1737525038143,-2532.61,0.00022054,3]
[349941157,1737525038152,-500.0,0.00022054,3]
[349941158,1737525038162,-1452.61,0.00022054,3]
[349941159,1737525038171,-500.0,0.00022054,3]
[349941160,1737525038181,-500.0,0.00022054,3]
[349941161,1737525038191,-500.0,0.00022054,3]
[349941162,1737525038201,-839.0,0.00022054,3]
[349941163,1737525038211,-500.0,0.00022054,3]
[349941164,1737525038222,-816.86,0.00022054,3]
[349941165,1737525038231,-500.0,0.00022054,3]
[349941166,1737525038241,-287.07656836,0.00022054,3]
[349941167,1737525038252,-500.0,0.00022054,3]
[349941168,1737525038262,-500.0,0.00022054,3]
[349941169,1737525038271,-500.0,0.00022054,3]
[349941170,1737525038281,-1460.24,0.00022054,3]
[349941171,1737525038290,-500.0,0.00022054,3]
[349941172,1737525038301,-500.0,0.00022054,3]
[349941173,1737525038311,-500.0,0.00022054,3]
[349941174,1737525038326,-500.0,0.00022054,3]
[349941175,1737525038348,-740.55,0.00022054,3]
[349941176,1737525038371,-500.0,0.00022054,3]
[349941177,1737525038396,-500.0,0.00022054,3]
[349941178,1737525038422,-500.0,0.00022054,3]
[349941179,1737525038449,-500.0,0.00022054,3]
[349941180,1737525038477,-500.0,0.00022054,3]
[349941181,1737525038496,-500.0,0.00022054,3]
[349941182,1737525038506,-500.0,0.00022054,3]
[349941183,1737525038515,-524.98,0.00022054,3]
[349941184,1737525038525,-788.31,0.00022054,3]
[349941185,1737525038537,-1883.49,0.00022054,3]
[349941186,1737525038553,-2529.18,0.00022054,3]
[349941187,1737525038563,-500.0,0.00022054,3]
[349941188,1737525038573,-1295.67,0.00022054,3]
[349941189,1737525038583,-611.17,0.00022054,3]
[349941190,1737525038592,-500.0,0.00022054,3]
[349941191,1737525038601,-956.44,0.00022054,3]
[349941192,1737525038611,-500.0,0.00022054,3]
[349941193,1737525038621,-1463.83,0.00022054,3]
[349941194,1737525038630,-500.0,0.00022054,3]
[349941195,1737525038640,-500.0,0.00022054,3]
[349941196,1737525038649,-500.0,0.00022054,3]
[349941197,1737525038659,-713.79,0.00022054,3]
[349941198,1737525038668,-6434.63,0.00022054,3]
[349941199,1737525038678,-779.82,0.00022054,3]
[349941200,1737525038687,-500.0,0.00022054,3]
[349941201,1737525038697,-3016.11,0.00022054,3]
[349941202,1737525038706,-1055.18,0.00022054,3]
[349941203,1737525038716,-500.0,0.00022054,3]
[349941204,1737525038727,-744.72,0.00022054,3]
[349941205,1737525038736,-500.0,0.00022054,3]
[349941206,1737525038746,-500.0,0.00022054,3]
[349941207,1737525038755,-500.0,0.00022054,3]
[349941208,1737525038764,-500.0,0.00022054,3]
[349941209,1737525038774,-517.91,0.00022054,3]
[349941210,1737525038783,-1275.88,0.00022054,3]
[349941211,1737525038792,-1263.52,0.00022054,3]
[349941212,1737525038802,-843.7,0.00022054,3]
[349941213,1737525038812,-500.0,0.00022054,3]
[349941214,1737525038822,-421.35839547,0.00022054,3]
[349941215,1737525038831,-2715.3,0.00022054,3]
[349941216,1737525038841,-8049.24,0.00022054,3]
[349941217,1737525038850,-500.0,0.00022054,3]
[349941218,1737525038859,-500.0,0.00022054,3]
[349941219,1737525038868,-500.0,0.00022054,3]
[349941220,1737525038878,-772.57,0.00022054,3]
[349941221,1737525038889,-661.69,0.00022054,3]
[349941222,1737525038899,-1999.49,0.00022054,3]
[349941223,1737525038909,-599.42,0.00022054,3]
[349941224,1737525038918,-735.92,0.00022054,3]
[349941225,1737525038927,-2058.3,0.00022054,3]
[349941226,1737525038937,-500.0,0.00022054,3]
[349941227,1737525038946,-500.0,0.00022054,3]
[349941228,1737525038956,-500.0,0.00022054,3]
[349941229,1737525038965,-510.53556393,0.00022054,3]
[349941230,1737525038982,-2154.8,0.00022054,3]
[349941231,1737525039008,-500.0,0.00022054,3]
[349941232,1737525039029,-500.0,0.00022054,3]
[349941233,1737525039050,-3000.0,0.00022091,2]
[349941234,1737525039073,-1105.310038,0.000221,2]
[349941235,1737525039094,-620.0,0.000221,2]
[349941236,1737525039115,-1648.7308789,0.00022168,2]
[349941237,1737525039137,-175.76508099,0.0002219,2]
[349941238,1737525039154,-151.0,0.00022191,7]
[349941239,1737525039163,-151.0,0.00022191,2]
[349941240,1737525039173,-151.0,0.00022191,2]
[349941241,1737525039182,-151.0,0.00022191,2]
[349941242,1737525039192,-151.0,0.00022191,2]
[349941243,1737525039201,-151.0,0.00022191,2]
[349941244,1737525039210,-151.0,0.00022191,2]
[349941245,1737525039221,-151.0,0.00022191,2]
[349941246,1737525039230,-151.0,0.00022191,2]
[349941247,1737525039240,-151.0,0.00022191,2]
[349941248,1737525039250,-151.0,0.00022191,2]
[349941249,1737525039260,-151.0,0.00022191,2]
[349941250,1737525039271,-151.0,0.00022191,2]
[349941251,1737525039282,-151.0,0.00022191,2]